{"text_format":"1","workbook":"xlsx","n_sheets":2,"sheets":["Pokyny a nastavenie","12. september"],"not_rendered":{"charts":0,"images":0,"macros":1,"external_links":0,"defined_names":13,"comments":0,"pivot_tables":0},"unopened":[],"bounds":{"document_bytes":16777216,"sheet_cells":100000,"rows_first":2000,"rows_last":500,"rows_between":2000,"halvings":0,"cell_chars":16384,"cell_head_chars":4096},"cells_cut":0,"cells_raw":0,"read":"whole","date_system":"1900"}

{"sheet":"Pokyny a nastavenie","index":0,"n_rows":23,"n_cols":9,"rows_kept":23,"cut":false,"hidden":false,"merged":[[11,7,11,8],[4,7,4,8],[6,7,6,8],[8,7,8,8],[10,7,10,8],[3,2,3,4],[5,2,5,4],[7,2,7,4],[9,2,9,4],[3,7,3,8],[5,7,5,8],[7,7,7,8],[9,7,9,8]]}
[]
[null,"Pokyny a nastavenie"]
[]
[null,1,"V tabuľke Predmety nižšie zadajte názvy predmetov, o ktorých chcete mať pomocou tohto plánu prehľad.",null,null,null,5,"Do bunky A5 zadajte počiatočný dátum plánu."]
[]
[null,2,"V tabuľke Činnosti, ktorá sa tiež nachádza nižšie, upravte vzorové činnosti podľa svojich potrieb. ",null,null,null,6,"V riadku 4 pridajte do plánu predmety pomocou rozbaľovacieho zoznamu. "]
[]
[null,3,"V bunke I14 nastavte počet riadkov, ktoré sú každý deň potrebné na domáce úlohy.",null,null,null,7,"Do stĺpca Úlohy si pridajte úlohy pod jednotlivé predmety."]
[]
[null,4,"V hárku plánu, napríklad 12. september, vykonajte kroky 5 až 9.",null,null,null,8,"V stĺpci s počtom hodín, ktorý spoznáte podľa ikony hodín, zadajte odhadovaný počet hodín potrebný na vykonanie každej úlohy."]
[]
[null,null,null,null,null,null,9,"Po dokončení úlohy dvakrát kliknite vedľa príslušnej úlohy v stĺpci Hotovo, ktorý spoznáte podľa znaku začiarknutia."]
[]
[null,null,"Predmety",null,"Činnosti",null,null,"Počet riadkov na každý deň:",5]
[null,null,"Matematika 101",null,"Diskusia"]
[null,null,"Angličtina 105",null,"Laboratórne cvičenie"]
[null,null,"Francúzština 103",null,"Prednáška"]
[null,null,"Fyzika 101",null,"Test"]
[null,null,"Dejepis 101",null,"Čítanie"]
[null,null,null,null,"Úvaha"]
[null,null,null,null,"Výskumná práca"]
[null,null,null,null,"Kontrola úloh"]
[null,null,null,null,"Štúdium"]

{"sheet":"12. september","index":1,"n_rows":103,"n_cols":24,"rows_kept":103,"cut":false,"hidden":false,"merged":[]}
[]
[null,"Domáce úlohy"]
[]
[null,"Zadanie\npočiatočného dátumu","Celkom"," Predmet:",null,"Matematika 101"," Predmet:",null,"Angličtina 105"," Predmet:",null,"Francúzština 103"," Predmet:",null,"Fyzika 101"," Predmet:",null,null," Predmet:",null,null," Predmet:"]
[null,"2011-09-12",null,null,null,"ÚLOHA",null,null,"ÚLOHA",null,null,"ÚLOHA",null,null,"ÚLOHA",null,null,"ÚLOHA",null,null,"ÚLOHA",null,null,"ÚLOHA"]
[]
[null,{"$f":"DeňPlánu","v":"2011-09-12"},{"$f":"CelkovýPočetHodínDenne","v":6.5},1,1.5,"Čítanie",1,2,"Štúdium",null,1,"Čítanie",1,1,"Test"]
[null,{"$f":"DeňPlánu","v":""},{"$f":"CelkovýPočetHodínDenne","v":""},1,1,"Kontrola úloh"]
[null,{"$f":"DeňPlánu","v":""},{"$f":"CelkovýPočetHodínDenne","v":""}]
[null,{"$f":"DeňPlánu","v":""},{"$f":"CelkovýPočetHodínDenne","v":""}]
[null,{"$f":"DeňPlánu","v":""},{"$f":"CelkovýPočetHodínDenne","v":""}]
[null,{"$f":"DeňPlánu","v":"2011-09-13"},{"$f":"CelkovýPočetHodínDenne","v":0}]
[null,{"$f":"DeňPlánu","v":""},{"$f":"CelkovýPočetHodínDenne","v":""}]
[null,{"$f":"DeňPlánu","v":""},{"$f":"CelkovýPočetHodínDenne","v":""}]
[null,{"$f":"DeňPlánu","v":""},{"$f":"CelkovýPočetHodínDenne","v":""}]
[null,{"$f":"DeňPlánu","v":""},{"$f":"CelkovýPočetHodínDenne","v":""}]
[null,{"$f":"DeňPlánu","v":"2011-09-14"},{"$f":"CelkovýPočetHodínDenne","v":0}]
[null,{"$f":"DeňPlánu","v":""},{"$f":"CelkovýPočetHodínDenne","v":""}]
[null,{"$f":"DeňPlánu","v":""},{"$f":"CelkovýPočetHodínDenne","v":""}]
[null,{"$f":"DeňPlánu","v":""},{"$f":"CelkovýPočetHodínDenne","v":""}]
[null,{"$f":"DeňPlánu","v":""},{"$f":"CelkovýPočetHodínDenne","v":""}]
[null,{"$f":"DeňPlánu","v":"2011-09-15"},{"$f":"CelkovýPočetHodínDenne","v":0}]
[null,{"$f":"DeňPlánu","v":""},{"$f":"CelkovýPočetHodínDenne","v":""}]
[null,{"$f":"DeňPlánu","v":""},{"$f":"CelkovýPočetHodínDenne","v":""}]
[null,{"$f":"DeňPlánu","v":""},{"$f":"CelkovýPočetHodínDenne","v":""}]
[null,{"$f":"DeňPlánu","v":""},{"$f":"CelkovýPočetHodínDenne","v":""}]
[null,{"$f":"DeňPlánu","v":"2011-09-16"},{"$f":"CelkovýPočetHodínDenne","v":0}]
[null,{"$f":"DeňPlánu","v":""},{"$f":"CelkovýPočetHodínDenne","v":""}]
[null,{"$f":"DeňPlánu","v":""},{"$f":"CelkovýPočetHodínDenne","v":""}]
[null,{"$f":"DeňPlánu","v":""},{"$f":"CelkovýPočetHodínDenne","v":""}]
[null,{"$f":"DeňPlánu","v":""},{"$f":"CelkovýPočetHodínDenne","v":""}]
[null,{"$f":"DeňPlánu","v":"2011-09-17"},{"$f":"CelkovýPočetHodínDenne","v":0}]
[null,{"$f":"DeňPlánu","v":""},{"$f":"CelkovýPočetHodínDenne","v":""}]
[null,{"$f":"DeňPlánu","v":""},{"$f":"CelkovýPočetHodínDenne","v":""}]
[null,{"$f":"DeňPlánu","v":""},{"$f":"CelkovýPočetHodínDenne","v":""}]
[null,{"$f":"DeňPlánu","v":""},{"$f":"CelkovýPočetHodínDenne","v":""}]
[null,{"$f":"DeňPlánu","v":"2011-09-18"},{"$f":"CelkovýPočetHodínDenne","v":0}]
[null,{"$f":"DeňPlánu","v":""},{"$f":"CelkovýPočetHodínDenne","v":""}]
[null,{"$f":"DeňPlánu","v":""},{"$f":"CelkovýPočetHodínDenne","v":""}]
[null,{"$f":"DeňPlánu","v":""},{"$f":"CelkovýPočetHodínDenne","v":""}]
[null,{"$f":"DeňPlánu","v":""},{"$f":"CelkovýPočetHodínDenne","v":""}]
[null,{"$f":"DeňPlánu","v":""},{"$f":"CelkovýPočetHodínDenne","v":""}]
[null,{"$f":"DeňPlánu","v":""},{"$f":"CelkovýPočetHodínDenne","v":""}]
[null,{"$f":"DeňPlánu","v":""},{"$f":"CelkovýPočetHodínDenne","v":""}]
[null,{"$f":"DeňPlánu","v":""},{"$f":"CelkovýPočetHodínDenne","v":""}]
[null,{"$f":"DeňPlánu","v":""},{"$f":"CelkovýPočetHodínDenne","v":""}]
[null,{"$f":"DeňPlánu","v":""},{"$f":"CelkovýPočetHodínDenne","v":""}]
[null,{"$f":"DeňPlánu","v":""},{"$f":"CelkovýPočetHodínDenne","v":""}]
[null,{"$f":"DeňPlánu","v":""},{"$f":"CelkovýPočetHodínDenne","v":""}]
[null,{"$f":"DeňPlánu","v":""},{"$f":"CelkovýPočetHodínDenne","v":""}]
[null,{"$f":"DeňPlánu","v":""},{"$f":"CelkovýPočetHodínDenne","v":""}]
[null,{"$f":"DeňPlánu","v":""},{"$f":"CelkovýPočetHodínDenne","v":""}]
[null,{"$f":"DeňPlánu","v":""},{"$f":"CelkovýPočetHodínDenne","v":""}]
[null,{"$f":"DeňPlánu","v":""},{"$f":"CelkovýPočetHodínDenne","v":""}]
[null,{"$f":"DeňPlánu","v":""},{"$f":"CelkovýPočetHodínDenne","v":""}]
[null,{"$f":"DeňPlánu","v":""},{"$f":"CelkovýPočetHodínDenne","v":""}]
[null,{"$f":"DeňPlánu","v":""},{"$f":"CelkovýPočetHodínDenne","v":""}]
[null,{"$f":"DeňPlánu","v":""},{"$f":"CelkovýPočetHodínDenne","v":""}]
[null,{"$f":"DeňPlánu","v":""},{"$f":"CelkovýPočetHodínDenne","v":""}]
[null,{"$f":"DeňPlánu","v":""},{"$f":"CelkovýPočetHodínDenne","v":""}]
[null,{"$f":"DeňPlánu","v":""},{"$f":"CelkovýPočetHodínDenne","v":""}]
[null,{"$f":"DeňPlánu","v":""},{"$f":"CelkovýPočetHodínDenne","v":""}]
[null,{"$f":"DeňPlánu","v":""},{"$f":"CelkovýPočetHodínDenne","v":""}]
[null,{"$f":"DeňPlánu","v":""},{"$f":"CelkovýPočetHodínDenne","v":""}]
[null,{"$f":"DeňPlánu","v":""},{"$f":"CelkovýPočetHodínDenne","v":""}]
[null,{"$f":"DeňPlánu","v":""},{"$f":"CelkovýPočetHodínDenne","v":""}]
[null,{"$f":"DeňPlánu","v":""},{"$f":"CelkovýPočetHodínDenne","v":""}]
[null,{"$f":"DeňPlánu","v":""},{"$f":"CelkovýPočetHodínDenne","v":""}]
[null,{"$f":"DeňPlánu","v":""},{"$f":"CelkovýPočetHodínDenne","v":""}]
[null,{"$f":"DeňPlánu","v":""},{"$f":"CelkovýPočetHodínDenne","v":""}]
[null,{"$f":"DeňPlánu","v":""},{"$f":"CelkovýPočetHodínDenne","v":""}]
[null,{"$f":"DeňPlánu","v":""},{"$f":"CelkovýPočetHodínDenne","v":""}]
[null,{"$f":"DeňPlánu","v":""},{"$f":"CelkovýPočetHodínDenne","v":""}]
[null,{"$f":"DeňPlánu","v":""},{"$f":"CelkovýPočetHodínDenne","v":""}]
[null,{"$f":"DeňPlánu","v":""},{"$f":"CelkovýPočetHodínDenne","v":""}]
[null,{"$f":"DeňPlánu","v":""},{"$f":"CelkovýPočetHodínDenne","v":""}]
[null,{"$f":"DeňPlánu","v":""},{"$f":"CelkovýPočetHodínDenne","v":""}]
[null,{"$f":"DeňPlánu","v":""},{"$f":"CelkovýPočetHodínDenne","v":""}]
[null,{"$f":"DeňPlánu","v":""},{"$f":"CelkovýPočetHodínDenne","v":""}]
[null,{"$f":"DeňPlánu","v":""},{"$f":"CelkovýPočetHodínDenne","v":""}]
[null,{"$f":"DeňPlánu","v":""},{"$f":"CelkovýPočetHodínDenne","v":""}]
[null,{"$f":"DeňPlánu","v":""},{"$f":"CelkovýPočetHodínDenne","v":""}]
[null,{"$f":"DeňPlánu","v":""},{"$f":"CelkovýPočetHodínDenne","v":""}]
[null,{"$f":"DeňPlánu","v":""},{"$f":"CelkovýPočetHodínDenne","v":""}]
[null,{"$f":"DeňPlánu","v":""},{"$f":"CelkovýPočetHodínDenne","v":""}]
[null,{"$f":"DeňPlánu","v":""},{"$f":"CelkovýPočetHodínDenne","v":""}]
[null,{"$f":"DeňPlánu","v":""},{"$f":"CelkovýPočetHodínDenne","v":""}]
[null,{"$f":"DeňPlánu","v":""},{"$f":"CelkovýPočetHodínDenne","v":""}]
[null,{"$f":"DeňPlánu","v":""},{"$f":"CelkovýPočetHodínDenne","v":""}]
[null,{"$f":"DeňPlánu","v":""},{"$f":"CelkovýPočetHodínDenne","v":""}]
[null,{"$f":"DeňPlánu","v":""},{"$f":"CelkovýPočetHodínDenne","v":""}]
[null,{"$f":"DeňPlánu","v":""},{"$f":"CelkovýPočetHodínDenne","v":""}]
[null,{"$f":"DeňPlánu","v":""},{"$f":"CelkovýPočetHodínDenne","v":""}]
[null,{"$f":"DeňPlánu","v":""},{"$f":"CelkovýPočetHodínDenne","v":""}]
[null,{"$f":"DeňPlánu","v":""},{"$f":"CelkovýPočetHodínDenne","v":""}]
[null,{"$f":"DeňPlánu","v":""},{"$f":"CelkovýPočetHodínDenne","v":""}]
[null,{"$f":"DeňPlánu","v":""},{"$f":"CelkovýPočetHodínDenne","v":""}]
[null,{"$f":"DeňPlánu","v":""},{"$f":"CelkovýPočetHodínDenne","v":""}]
[null,{"$f":"DeňPlánu","v":""},{"$f":"CelkovýPočetHodínDenne","v":""}]
[null,{"$f":"DeňPlánu","v":""},{"$f":"CelkovýPočetHodínDenne","v":""}]
[null,{"$f":"DeňPlánu","v":""},{"$f":"CelkovýPočetHodínDenne","v":""}]
[null,{"$f":"DeňPlánu","v":""},{"$f":"CelkovýPočetHodínDenne","v":""}]
[null,{"$f":"DeňPlánu","v":""},{"$f":"CelkovýPočetHodínDenne","v":""}]